Cogmind - Beta 11.1 @@@ ROGUE MODE // 2022.08.30 @ 20:00:35 Player: Beelzebelt Result: Self-destructed Performance ------------- Evolutions (1) 500 Regions Visited (3) 600 Robots Destroyed (34) 170 Value Destroyed (890) 890 Prototype IDs (0) 0 Alien Tech Used (0) 0 Bonus (0) 0 TOTAL SCORE: 2160 Bonus ------- None Cogmind --------- Core Integrity 192/400 Matter 245/300 Energy 161/265 System Corruption 0% Temperature Danger (474) Movement Treading (240) Ox1 Location -9/Storage Parts ------- > --- POWER (1) -------- Improved Ion Engine > --- PROPULSION (3) --- Light Treads Light Treads Light Treads > --- UTILITY (3) ------ Large Storage Unit Transport Network Coupler > --- WEAPON (2) ------- Small Laser Particle Gun > --- INVENTORY (15) --- Improved Ion Engine Improved Ion Engine Improved Ion Engine Light Treads Light Treads Light Treads Visual Processing Unit Visual Processing Unit Visual Processing Unit Light Armor Plating Authchip [Armor] Peak State ------------ > --- POWER ------------ Improved Ion Engine > --- PROPULSION ------- Light Treads Light Treads Light Treads > --- UTILITY ---------- Heat Sink Large Storage Unit Transport Network Coupler > --- WEAPON ----------- Small Laser Spread Laser > --- INVENTORY -------- Improved Ion Engine Improved Ion Engine Light Treads Heat Sink Cooling System Cooling System Drone Bay Drone Bay Drone Bay Small Laser Small Laser Particle Gun Assault Rifle Light Assault Rifle [Rating: 14] Favorites ----------- Power Improved Ion Engine Engine Improved Ion Engine Propulsion Light Treads Treads Light Treads Leg Aluminum Leg Utility Transport Network Coupler Device Heat Sink Storage Large Storage Unit Processor Transport Network Coupler Protection Light Armor Plating Weapon Small Laser Energy Gun Small Laser Build | -11 -10 -9 -9 ------- Run | Scr Mat Mat Sto Slots Evolved 2 | . . 2 . Power . | . . . . Propulsion 1 | . . 1 . Utility 1 | . . 1 . Weapon . | . . . . Parts Attached 32 | 6 9 8 9 Power 4 | 1 1 1 1 Engine 4 | 1 1 1 1 Core . | . . . . Reactor . | . . . . Propulsion 10 | 2 2 3 3 Treads 8 | . 2 3 3 Leg 2 | 2 . . . Wheel . | . . . . Hover . | . . . . Flight . | . . . . Utility 11 | 1 6 3 1 Device 5 | . 3 2 . Storage 3 | 1 2 . . Processor 1 | . 1 . . Hackware . | . . . . Protection 2 | . . 1 1 Artifact . | . . . . Weapon 7 | 2 . 1 4 Energy Gun 7 | 2 . 1 4 Energy Cannon . | . . . . Ballistic Gun . | . . . . Ballistic Cannon . | . . . . Launcher . | . . . . Special Weapon . | . . . . Impact Weapon . | . . . . Slashing Weapon . | . . . . Piercing Weapon . | . . . . Special Melee Weapon . | . . . . Unidentified Prototypes . | . . . . Parts Lost 12 | . . 5 7 Power 2 | . . 1 1 Propulsion 3 | . . 1 2 Utility 2 | . . 1 1 Weapon 5 | . . 2 3 Highest Loss Streak 5 | . . 4 5 To Critical Strikes . | . . . . Average Slot Usage (%) 98 | . 97 97 99 Engine 11 | . 14 11 11 Treads 24 | . 5 32 33 Leg 7 | . 22 . . Device 3 | . 2 3 3 Storage 11 | . 14 11 11 Processor 10 | . 9 11 11 Protection 4 | . . 5 7 Energy Gun 23 | . 28 22 21 Naked Turns . | . . . . Heaviest Build 36 | 10 29 36 34 Greatest Support 60 | 20 40 60 60 Greatest Overweight (x) 1 | . 1 . . Average Overweight (x) . | . . . . Largest Inventory Capacity 15 | 8 15 15 15 Average Capacity 13 | 6 11 15 15 Most Carried 15 | 4 15 14 15 Average Carried 11 | 2 9 12 13 Final Capacity 15 | 8 15 15 15 Final Carried 13 | 4 13 12 11 Class Distribution -------------------- 59% | Mutant 40% | Scavenger-Mutant Dominant Class ---------------- Mutant | -10/Materials Mutant | -9/Materials Scavenger-Mutant | -9/Storage Resources | -11 -10 -9 -9 ----------- Run | Scr Mat Mat Sto Matter Collected 460 | 211 139 70 40 Remotely . | . . . . Salvage Created 1488 | . 376 292 820 Parts 75 | . 15 19 41 Haulers Intercepted 4 | . 2 . 2 Recyclers Shooed 5 | . . 1 4 Parts Field Recycled . | . . . . Retrieved Matter . | . . . . Parts Self-Destructed . | . . . . Prevented . | . . . . Kills | -11 -10 -9 -9 ------- Run | Scr Mat Mat Sto Combat Hostiles Destroyed 23 | . 6 7 10 Guns 23 | . 6 7 10 Classes Destroyed 8 | . 5 3 . Worker 1 | . . 1 . Hauler 4 | . 2 . 2 Recycler 5 | . 1 . 4 Watcher 1 | . 1 . . Swarmer 3 | . 3 . . Grunt 10 | . 3 5 2 Duelist 1 | . . 1 . Sentry 9 | . . 1 8 Best Kill Streak 4 | . 4 3 4 Combat Bots Only 4 | . 4 3 4 Max Kills in Single Turn 1 | . 1 1 1 Gunslinging . | . . . . Exploded . | . . . . Melee . | . . . . Uniques/NPCs Destroyed . | . . . . Combat | -11 -10 -9 -9 -------- Run | Scr Mat Mat Sto Damage Taken 1923 | . 290 605 1028 Core 261 | . 53 72 136 Absorbed by Shields . | . . . . Core Remaining (%) 89 | 100 78 . . Volleys Fired 118 | . 29 34 55 Largest 2 | . 2 2 2 Hottest 130 | . 80 80 130 Shots Fired 230 | . 58 68 104 Gun 230 | . 58 68 104 Cannon . | . . . . Launcher . | . . . . Special . | . . . . Kinetic . | . . . . Thermal 230 | . 58 68 104 Explosive . | . . . . Electromagnetic . | . . . . Robot Hit Streak 14 | . 6 12 14 Robot Miss Streak 4 | . 3 4 3 Penetration Max . | . . . . Secondary Targets 2 | . 1 1 . Max Gunslinging Chain 1 | . 1 1 . Shots Hit Robots 158 | . 40 47 71 Core Hits 94 | . 16 18 60 Critical Kills . | . . . . Critical Parts Destroyed . | . . . . Critical Strikes . | . . . . Melee Attacks . | . . . . Impact . | . . . . Slashing . | . . . . Piercing . | . . . . Sneak Attacks . | . . . . Combat Hostiles . | . . . . Follow-up Attacks . | . . . . Damage Inflicted 1881 | . 451 525 905 Guns 1874 | . 444 525 905 Cannons . | . . . . Explosions . | . . . . Melee . | . . . . Ramming 7 | . 7 . . Kinetic . | . . . . Thermal 1874 | . 444 525 905 Explosive . | . . . . Electromagnetic . | . . . . Impact . | . . . . Slashing . | . . . . Piercing . | . . . . Highest Corruption . | . . . . Average Corruption . | . . . . Corruption Purged . | . . . . Corruption Blocked . | . . . . Overload Shots . | . . . . Overflow Damage . | . . . . Projectiles . | . . . . Explosions . | . . . . Melee . | . . . . Knockbacks . | . . . . Impact . | . . . . Kinetic . | . . . . Secondary . | . . . . Self-Inflicted Damage . | . . . . Shots . | . . . . Rammed . | . . . . Targets Rammed 1 | . 1 . . Kicked 1 | . 1 . . Crushed . | . . . . Highest Temperature 556 | . 168 243 556 Average Temperature 109 | . 62 91 136 Received Heat Transfer 654 | . 54 222 378 Effects 18 | . . 1 17 Shutdowns 2 | . . . 2 Energy Bleed 4 | . . 1 3 Interference 3 | . . . 3 Matter Decay 1 | . . . 1 Short Circuit 4 | . . . 4 Damage (minor) 1 | . . . 1 Damage (major) 2 | . . . 2 Damage (core) 1 | . . . 1 Siege Activations . | . . . . Robots Corrupted . | . . . . Combat Hostiles . | . . . . Parts Fried . | . . . . Impact Corruptions . | . . . . Robots Melted . | . . . . Combat Hostiles . | . . . . Parts Melted 7 | . 1 2 4 Heat Transferred 3817 | . 1000 1200 1617 Parts Sabotaged . | . . . . Parts Stolen . | . . . . Parts Stripped . | . . . . Power Chain Reactions . | . . . . Missiles Intercepted . | . . . . Alert | -11 -10 -9 -9 ------- Run | Scr Mat Mat Sto Peak Influence 202 | . 190 160 202 Initial 54 | . . 5 54 Average 76 | . 87 39 101 Maximum Alert Level 1 | . . . 1 Low Security (%) 99 | 100 100 100 99 Level 1 . | . . . . Level 2 . | . . . . Level 3 . | . . . . Level 4 . | . . . . Level 5 . | . . . . High Security . | . . . . Max Security . | . . . . Squads Dispatched 7 | . 2 2 3 Investigation 2 | . . . 2 Extermination . | . . . . Reinforcement 5 | . 2 2 1 Assault . | . . . . Garrison . | . . . . Intercept . | . . . . Searches Triggered . | . . . . Construction Impeded . | . . . . Haulers Reinforced . | . . . . Active Scanning Responses . | . . . . Cargo Convoy Interrupts . | . . . . Stealth | -11 -10 -9 -9 --------- Run | Scr Mat Mat Sto Distress Signals 2 | . . . 2 Communications Jammed . | . . . . Distress Signals . | . . . . Times Spotted 42 | . 11 16 15 Peak Tracking Total 5 | . 4 4 5 Tactical Retreats 3 | . . 3 . Traps | -11 -10 -9 -9 ------- Run | Scr Mat Mat Sto Traps Triggered 2 | . . . 2 Indirectly . | . . . . Trap Hack Attempts . | . . . . Triggered . | . . . . Disarmed . | . . . . Reprogrammed . | . . . . Reused . | . . . . Traps Extracted . | . . . . Installed . | . . . . Triggered . | . . . . Machines | -11 -10 -9 -9 ---------- Run | Scr Mat Mat Sto Machines Disabled . | . . . . Max in Single Turn . | . . . . Machines Sabotaged . | . . . . Garrisons Compromised . | . . . . Overloaded Fab Kills . | . . . . Hacking | -11 -10 -9 -9 --------- Run | Scr Mat Mat Sto Machines Accessed 9 | . 1 3 5 Terminals 6 | . 1 1 4 Fabricators . | . . . . Repair Stations . | . . . . Recycling Units 2 | . . 1 1 Scanalyzers 1 | . . 1 . Garrison Access . | . . . . Total Hacks 20 | . 4 4 12 Successful 11 | . 2 2 7 Failed 9 | . 2 2 5 Catastrophic 1 | . . 1 . Database Lockouts . | . . . . Manual 14 | . 2 . 12 Terminals 16 | . 4 1 11 Fabricators . | . . . . Repair Stations . | . . . . Recycling Units 3 | . . 2 1 Scanalyzers 1 | . . 1 . Garrison Access . | . . . . Terminal Hacks 8 | . 2 . 6 Record 1 | . . . 1 Open Door 1 | . . . 1 Alert Level 2 | . . . 2 Unreport Threat 1 | . . . 1 Locate Traps 1 | . 1 . . Transport Status 1 | . 1 . . Investigation Status 1 | . . . 1 Fabricator Hacks . | . . . . Repair Station Hacks . | . . . . Recycling Unit Hacks 3 | . . 2 1 Report Inventory 2 | . . 1 1 Retrieve Components 1 | . . 1 . Scanalyzer . | . . . . Garrison Access Hacks . | . . . . Unauthorized Hacks . | . . . . Terminals . | . . . . Fabricators . | . . . . Repair Stations . | . . . . Recycling Units . | . . . . Scanalyzers . | . . . . Garrison Access . | . . . . Data Cores Recovered . | . . . . Used . | . . . . Hacking Detections 7 | . 1 2 4 Full Trace Events 1 | . . . 1 Feedback Events . | . . . . Feedback Blocked . | . . . . Robot Schematics Acquired . | . . . . Robots Built . | . . . . Authchips . | . . . . Time . | . . . . Total Robot Build Rating . | . . . . Part Schematics Acquired . | . . . . Parts Built . | . . . . Authchips . | . . . . Time . | . . . . Total Part Build Rating . | . . . . Parts Repaired . | . . . . Time . | . . . . Parts Recycled . | . . . . Recycled Matter . | . . . . Retrieved Matter . | . . . . Retrieved Components 3 | . . 3 . Parts Scanalyzed . | . . . . Part Schematics Acquired . | . . . . Parts Damaged . | . . . . Bothacking | -11 -10 -9 -9 ------------ Run | Scr Mat Mat Sto Used RIF Installer . | . . . . Robots Hacked . | . . . . Non-combat . | . . . . Combat . | . . . . Robot Hacks Applied . | . . . . Relay Couplers Released . | . . . . Fabnet Peak Effective % . | . . . . Robots Rewired . | . . . . Allies Hacked . | . . . . Hacks Repelled . | . . . . Allies | -11 -10 -9 -9 -------- Run | Scr Mat Mat Sto Total Allies . | . . . . Largest Group . | . . . . Highest-Rated Group . | . . . . Highest-Rated Ally . | . . . . Total Orders . | . . . . Ally Attacks . | . . . . Total Damage . | . . . . Kills . | . . . . Allies Corrupted . | . . . . Allies Melted . | . . . . Intel | -11 -10 -9 -9 ------- Run | Scr Mat Mat Sto Robot Analysis Total . | . . . . Derelict Logs Recovered . | . . . . Drone Launches . | . . . . Drone Recoveries . | . . . . Exploration | -11 -10 -9 -9 ------------- Run | Scr Mat Mat Sto Turns Passed 1768 | 55 549 493 671 Spaces Moved 821 | 37 286 217 281 Core 4 | 4 . . . Treads 565 | . 67 217 281 Legs 252 | 33 219 . . Wheels . | . . . . Hover . | . . . . Flight . | . . . . Fastest Speed 50 | 50 120 160 160 Average Speed 152 | 112 145 160 160 Slowest Speed 190 | 120 190 160 160 Overloaded Moves . | . . . . Propulsion Burnouts . | . . . . Robots Hopped . | . . . . Cave-ins Triggered . | . . . . Exploration Rate (%) 28 | 5 33 19 57 Regions Visited 3 Branch Regions 1 Pre-discovered Areas . | . . . . Known Exits Taken . | . . . . Unknown Exits Taken 3 | 1 1 1 . Scrap Searched . | . . . . Spaces Dug . | . . . . Terrain Destroyed . | . . . . Melee . | . . . . Projectile . | . . . . AOE . | . . . . Terrain Rammed . | . . . . Walls Destroyed . | . . . . Machines Disabled . | . . . . Actions | -11 -10 -9 -9 --------- Run | Scr Mat Mat Sto Total 1113 | 47 367 295 404 Wait 78 | 1 16 30 31 Move 818 | 36 285 216 281 Hop . | . . . . Pick Up 41 | 4 15 6 16 Fast Attach 7 | 6 1 . . Attach 20 | . 4 8 8 Detach 4 | . 2 1 1 Swap 5 | . 4 . 1 Drop 21 | . 10 . 11 Fire 118 | . 29 34 55 Melee . | . . . . Ram . | . . . . Kick 1 | . 1 . . Crush . | . . . . Escape Stasis . | . . . . Rewire . | . . . . Trap . | . . . . Miscellaneous . | . . . . Route ------- -11/Scrapyard -10/Materials -9/Materials -9/Storage History --------- Turn | Location | Event 4 | -11/Scrapyard | Discovered new exit (range 15) 56 | -11/Scrapyard | Entered Materials 306 | -10/Materials | Build established: Mutant 568 | -10/Materials | Discovered new exit (range 10) 605 | -10/Materials | Entered another Materials area 605 | -9/Materials | Evolved 2 slots: Propulsion x1, Utility x1 1040 | -9/Materials | Discovered new exit (range 11) 1098 | -9/Materials | Entered Storage 1127 | -9/Storage | Lost 4 parts (1p1n1u1w) 1341 | -9/Storage | Build established: Scavenger-Mutant 1754 | -9/Storage | Core integrity fell below 50% 1769 | -9/Storage | Self-destructed Last Messages --------------- 01752_ Overheating: Short circuit. 01752_ G-34 Mercenary destroyed. 01754_ Overheating: Core damaged (-52). 01755_ Transport Network Coupler broken. 01755_ Overheating: Short circuit. 01756_ Power failure, Imp. Ion Engine shutdown. 01757_ Particle Gun broken. 01757_ Overheating: Short circuit. 01758_ U-05 Engineer builds a Door. 01759_ Overheating: Matter decay (-30). 01762_ Overheating: Energy bleed (-36). 01763_ Overheating: Lgt. Treads damaged (-12). 01764_ Overheating: Broken Transport Network Coupler damaged (-5). 01764_ Overheating: Broken Lgt. Treads damaged (-11). 01765_ Overheating: Energy bleed (-38). 01766_ Overheating: System interference. 01766_ Sml. Laser temporarily disabled. 01767_ Overheating: Energy bleed (-15). 01769_ Lgt. Treads broken. 01769_ Overheating: Short circuit. Map ----- +----------------------------------------------------+ | ???????????????????????????????????????????? | | ???????????????????????????????????????????? | | ???????????????????????????????????????????? | | ???????????????????????????????????????????? | | ???????????????????????????????????????????? | | ???????????????????????????????????????????? | | ???????????????????????????????????????????? | | ???????????????????????????????????????????? | | #??????????????????????????????????????????? | | #??????????????????????????????????????????? | | / ????????????????????? ?????????????????? | | ??????????????????????#ss ?????????????????? | | ??????????????????????# ?????????????????? | | #?????????????????????# ?????????????????? | | #???#######???????????# ?????????????????? | | ?? #???????????# ?????????????????? | | ## """ #???????????# =?????????????????? | | ## """ #?????????#?# [%#????????????????? | | ## """ #??????????T# g[#????????????????? | | ## #?????????? # =%#????????????????? | | ## """ ##??????????; #????????????????? | | ## """ #??????????#w #????????????????? | | ## """ #???????????# +????????????????? | | ## [% #???????????# #????????????????? | | ######+####???????????# #????????????????? | | !!#?????????????# @##########???????? | | #?????????????# # ! ???????? | | %! #?????????????# %!# #??????? | | ###+#####?????????????# !# """ """ #??????? | | [ #???????????????# [%# """ """ ##?????? | | "" ########????????#!==+ "" """ #?????? | | "" ## ##########%* # #??????? | | "" ## [! # #??????? | | / # #??????? | | "" ## [=* ## T#######??????? | | "" ## ####+#############????????????? | | "" ####+###?#[% #????????????????? | | #?? ???#" #?????????????????? | | "Y" #??"" ???#T "#????????????????? | | """ #?""" ??#" T#????????????????? | | #######?""" ??# "#????????????????? | | ??????? /?# """ ##????????????????? | | ??????? """ ?# """ #?????????????????? | | ?????????"" # """ #?????????????????? | | ??????????? #########?#?????????????????? | | ??????????? ???????????????????????????? | | ????????????####???????????????????????????? | | ???????????????????????????????????????????? | | ???????????????????????????????????????????? | | ???????????????????????????????????????????? | +----------------------------------------------------+ Best States ------------- Heat Dissipation 38 Energy Generation 12 Energy Capacity 265 Matter Stores 300 Matter Capacity 300 Sight Range 16 Terrain Scan Range 14 Terrain Scan Density 10 Armor Coverage 225 Evasion (%) 55 Recoil Reduction 3 Authchip Count 1 Item Schematics ----------------- None Robot Schematics ------------------ None Fabricated ------------ Nothing Alien Tech Used ----------------- None Achievements -------------- None Challenges ------------ None Game ------ Seed SurgeVariableDesublimator Manual? 0 Play Time 00:36:20 Cumulative 12.2 hours Start 2022.08.30 @ 19:15:03 End 2022.08.30 @ 20:00:35 Sessions 1 Manual Loads 0 Difficulty Rogue Special Mode None Game No. 10 Rogue 10 Adventurer 0 Explorer 0 Win Type - Total 0 Types 0/0/0/0/0/0/0/0/0 Lore% 5 Gallery% 17 Achievement% 16 Wizard Run 0 Options --------- ASCII 0 Keyboard 1 Movement Numpad Keybinds 0 Fullscreen 2 Font 16/Terminus Map View 76x50 Tactical HUD 1 Map Filters NONE Filters NONE Steam 0 RUN: 3aa743ef-287f-467d-8747-55e82a00bf5a